bitfinex/quotes_BTCUSD_20240715
["timestamp","ask_amount","ask_price","bid_price","bid_amount"]
[1721053550669,1.07014437,62949.0,62948.0,0.11818115]
[1721053551179,0.41093632,62949.0,62948.0,0.11718115]
[1721053551386,0.63351277,62949.0,62948.0,0.19888115]
[1721053551593,0.63851277,62949.0,62948.0,0.19888115]
[1721053552134,0.31579577,62949.0,62948.0,0.19888115]
[1721053552428,0.39415418,62949.0,62948.0,0.19588115]
[1721053552648,0.39415418,62949.0,62948.0,0.26228115]
[1721053552875,0.38763658,62949.0,62948.0,0.26128115]
[1721053553219,0.38763658,62949.0,62948.0,0.26428115]
[1721053553860,0.31627447,62949.0,62948.0,0.26428115]
[1721053554301,0.31927447,62949.0,62948.0,0.26428115]
[1721053554424,0.31627447,62949.0,62948.0,0.26428115]
[1721053554780,0.41142395,62949.0,62948.0,0.26428115]
[1721053554980,0.31627447,62949.0,62948.0,0.26828115]
[1721053555249,0.31627447,62949.0,62948.0,0.38828115]
[1721053555602,0.15741647,62949.0,62948.0,0.54714215]
[1721053555958,0.61342422,62960.0,62956.0,0.11718115]
[1721053555959,0.259668,62957.0,62956.0,0.11718115]
[1721053556070,0.73546223,62957.0,62956.0,0.11718115]
[1721053559107,0.73546223,62957.0,62956.0,0.11618115]
[1721053559108,0.577345,62957.0,62956.0,0.11618115]
[1721053559429,0.73602573,62957.0,62956.0,0.11518115]
[1721053559661,0.73602633,62957.0,62956.0,0.11518115]
[1721053559836,1.05770333,62957.0,62956.0,0.11518115]
[1721053560093,1.05770333,62957.0,62956.0,0.03950473]
[1721053560278,0.158848,62953.0,62952.0,0.03950473]
[1721053560631,0.158848,62953.0,62945.0,0.03950473]
[1721053560632,0.5,62951.0,62945.0,0.03950473]
[1721053560861,0.5,62951.0,62938.0,0.00397653]
[1721053560862,0.79438,62942.0,62941.0,0.03950473]
[1721053561107,1.27081333,62942.0,62941.0,0.03950473]
[1721053561497,1.27150257,62942.0,62941.0,0.11518115]
[1721053562640,1.27150257,62942.0,62941.0,0.11718115]
[1721053563263,1.3905113,62942.0,62941.0,0.11718115]
[1721053563416,1.3905113,62942.0,62941.0,0.11818115]
[1721053564001,0.95375057,62942.0,62941.0,0.11818115]
[1721053564373,1.04825282,62942.0,62941.0,0.11818115]
[1721053564571,0.11901593,62942.0,62941.0,0.20048115]
[1721053564775,0.15760672,62942.0,62941.0,0.85891615]
[1721053565136,0.06239855,62942.0,62941.0,0.38228115]
[1721053565360,0.06239855,62942.0,62941.0,0.54115915]
[1721053567033,0.13380409,62942.0,62941.0,0.54115915]
[1721053567370,0.11000434,62942.0,62941.0,0.85891615]
[1721053567703,0.06239855,62942.0,62941.0,0.85891615]
[1721053567936,0.158865,62947.0,62946.0,0.03950473]
[1721053568154,0.15970832,62947.0,62946.0,0.11518115]
[1721053568594,0.15970832,62947.0,62946.0,0.54284715]
[1721053568595,0.25495916,62947.0,62946.0,0.54284715]
[1721053568766,0.15970832,62947.0,62946.0,1.17831115]
[1721053568978,0.158846,62954.0,62952.0,0.11518115]
[1721053569127,0.63032827,62953.0,62952.0,0.11518115]
[1721053569564,0.63032827,62953.0,62952.0,0.30158115]
[1721053569937,0.63032827,62953.0,62952.0,0.29658115]
[1721053570368,0.63032827,62953.0,62952.0,0.17258115]
[1721053571203,0.4707,62953.0,62952.0,0.17258115]
[1721053571414,0.63106918,62953.0,62952.0,0.17258115]
[1721053571647,0.4707,62953.0,62952.0,0.17258115]
[1721053571892,0.16056129,62953.0,62952.0,0.17558115]
[1721053572290,0.16056129,62953.0,62952.0,0.17758115]
[1721053573231,0.31940929,62953.0,62952.0,0.17758115]
[1721053573435,0.16056129,62953.0,62952.0,0.17758115]
[1721053574376,0.16046369,62953.0,62952.0,0.17758115]
[1721053576815,0.31931169,62953.0,62952.0,0.17758115]
[1721053577179,0.31931169,62953.0,62952.0,0.11090473]
[1721053577392,0.31931169,62953.0,62952.0,0.17758115]
[1721053580019,0.31931169,62953.0,62952.0,0.29758115]
[1721053580276,0.16046369,62953.0,62952.0,0.77413415]
[1721053580456,0.11051194,62953.0,62952.0,0.85403415]
[1721053580589,0.06287334,62953.0,62952.0,0.85403415]
[1721053580793,0.11990947,62956.0,62955.0,0.22618115]
[1721053580995,0.06369275,62956.0,62955.0,0.22618115]
[1721053581281,0.06369275,62956.0,62955.0,1.15939815]
[1721053581394,0.11132081,62956.0,62955.0,1.15939815]
[1721053582226,0.11132081,62956.0,62955.0,0.97272173]
[1721053582491,0.06369275,62956.0,62955.0,1.15939815]
[1721053583336,0.06469275,62956.0,62955.0,1.16839815]
[1721053583988,0.06477727,62956.0,62955.0,1.16839815]
[1721053584438,0.06475551,62956.0,62955.0,1.16839815]
[1721053585298,0.06575551,62956.0,62955.0,1.17639815]
[1721053587270,0.0658287,62956.0,62955.0,1.17639815]
[1721053589751,0.0658287,62956.0,62955.0,0.98972173]
[1721053589914,0.0658287,62956.0,62955.0,1.17639815]
[1721053590431,0.06576247,62956.0,62955.0,1.17639815]
[1721053590648,0.06576247,62956.0,62955.0,0.98972173]
[1721053591053,0.06576247,62956.0,62955.0,1.17639815]
[1721053593619,0.06576247,62956.0,62955.0,0.98972173]
[1721053593823,0.06576247,62956.0,62955.0,1.17639815]
[1721053593824,0.06583676,62956.0,62955.0,1.17639815]
[1721053595053,0.06583676,62956.0,62955.0,1.59408515]
[1721053596323,0.06583676,62956.0,62955.0,1.40740873]
[1721053596582,0.06583676,62956.0,62955.0,1.59408515]
[1721053596984,0.06552726,62956.0,62955.0,1.59408515]
[1721053597451,0.38320912,62956.0,62955.0,0.05650473]
[1721053597665,1.52085646,62956.0,62955.0,0.017]
[1721053597874,1.62085646,62956.0,62955.0,0.017]
[1721053598057,1.93853846,62956.0,62955.0,0.017]
[1721053598550,1.93753846,62956.0,62955.0,0.008]
[1721053598757,2.5112162,62956.0,62955.0,0.008]
[1721053598965,2.51557714,62956.0,62955.0,0.001]
[1721053599139,1.750179,62945.0,62944.0,0.03950473]
[1721053599301,1.93324156,62945.0,62944.0,0.03950473]
[1721053600059,1.93312873,62945.0,62944.0,0.03950473]
[1721053600945,1.94012873,62945.0,62944.0,0.04050473]
[1721053602803,1.94412873,62945.0,62944.0,0.04050473]
[1721053603156,1.94435708,62945.0,62944.0,0.04050473]
[1721053603365,1.93335708,62945.0,62944.0,0.03950473]
[1721053603907,1.93835708,62945.0,62944.0,0.03950473]
[1721053604088,1.94235708,62945.0,62944.0,0.03950473]
[1721053604616,1.93835708,62945.0,62944.0,0.03950473]
[1721053605171,1.93335708,62945.0,62944.0,0.03950473]
[1721053605369,1.93735708,62945.0,62944.0,0.03950473]
[1721053606156,1.43735708,62945.0,62944.0,0.03950473]
[1721053606380,1.39578825,62945.0,62944.0,0.03950473]
[1721053606582,1.55575245,62945.0,62944.0,0.03950473]
[1721053607257,1.112132,62942.0,62941.0,0.04041773]
[1721053607461,1.46362774,62942.0,62941.0,0.04041773]
[1721053607859,1.37615084,62942.0,62941.0,0.04041773]
[1721053608486,1.37615084,62942.0,62941.0,0.10709415]
[1721053608707,1.37615084,62942.0,62941.0,0.04041773]
[1721053609070,1.37715084,62942.0,62941.0,0.04041773]
[1721053609270,1.27309846,62942.0,62941.0,0.04041773]
[1721053609542,1.113132,62942.0,62941.0,0.04041773]
[1721053609742,1.27305049,62942.0,62941.0,0.04041773]
[1721053609959,1.113132,62942.0,62941.0,0.04041773]
[1721053610161,1.27299673,62942.0,62941.0,0.04041773]
[1721053610362,1.36777035,62942.0,62941.0,0.04041773]
[1721053610610,1.17574092,62942.0,62941.0,0.04041773]
[1721053610809,1.27187779,62942.0,62941.0,0.04041773]
[1721053610923,1.36665528,62942.0,62941.0,0.04041773]
[1721053611124,1.36765528,62942.0,62941.0,0.04041773]
[1721053611378,1.45513218,62942.0,62941.0,0.04041773]
[1721053611682,1.36665528,62942.0,62941.0,0.04041773]
[1721053612020,1.36765528,62942.0,62941.0,0.04041773]
[1721053612714,1.2069137,62942.0,62941.0,0.04041773]
[1721053613031,1.36728643,62942.0,62941.0,0.04041773]
[1721053613434,1.27250473,62942.0,62941.0,0.04041773]
[1721053615380,1.27350473,62942.0,62941.0,0.04041773]
[1721053615555,1.34452211,62942.0,62941.0,0.04041773]
[1721053615973,1.34433863,62942.0,62941.0,0.04041773]
[1721053617390,1.36733863,62942.0,62941.0,0.04041773]
[1721053617594,1.39100856,62942.0,62941.0,0.04041773]
[1721053617994,1.29632884,62942.0,62941.0,0.04041773]
[1721053619087,1.17655,62942.0,62941.0,0.04041773]
[1721053619273,1.33682119,62942.0,62941.0,0.04041773]
[1721053619499,1.42429809,62942.0,62941.0,0.04041773]
[1721053619704,1.49522172,62942.0,62941.0,0.000913]
[1721053620103,1.42429809,62942.0,62941.0,0.000913]
[1721053620303,1.33682119,62942.0,62941.0,0.000913]
[1721053620507,1.33582119,62942.0,62941.0,0.000913]
[1721053620830,1.95153561,62942.0,62941.0,0.000913]
[1721053621025,1.95153561,62942.0,62931.0,0.000913]
[1721053621026,1.525673,62932.0,62931.0,0.000913]
[1721053621198,1.525673,62932.0,62925.0,0.009163]
[1721053621199,0.8820589,62926.0,62925.0,0.009163]
[1721053621401,1.72736309,62926.0,62925.0,0.009163]
[1721053621623,2.06833781,62926.0,62925.0,0.009163]
[1721053621737,2.16833781,62926.0,62925.0,0.009163]
[1721053621938,2.16954525,62926.0,62925.0,0.009163]
[1721053622383,2.16954525,62926.0,62925.0,0.012163]
[1721053622585,2.26414237,62926.0,62925.0,0.012163]
[1721053623098,2.27414237,62926.0,62925.0,0.013163]
[1721053623256,2.17954525,62926.0,62925.0,0.013163]
[1721053623456,2.25049181,62926.0,62925.0,0.013163]
[1721053624100,2.26325978,62926.0,62925.0,0.014163]
[1721053624445,2.23957655,62926.0,62925.0,0.014163]
[1721053624699,2.24136851,62926.0,62925.0,0.014163]
[1721053624874,2.32567858,62917.0,62916.0,0.009163]
[1721053625076,0.8822489,62911.0,62910.0,0.009163]
[1721053625305,0.8822489,62911.0,62904.0,0.03950473]
[1721053625306,0.976908,62905.0,62904.0,0.03950473]
[1721053625475,1.685447,62905.0,62904.0,0.03950473]
[1721053625709,2.003386,62905.0,62904.0,0.03950473]
[1721053625877,2.16681003,62905.0,62904.0,0.03950473]
[1721053626076,2.16681003,62905.0,62903.0,0.03950473]
[1721053626077,0.953832,62904.0,62903.0,0.03950473]
[1721053626257,0.158977,62902.0,62901.0,0.05229733]
[1721053626463,1.2002729,62902.0,62901.0,0.05229733]
[1721053627111,1.30039807,62902.0,62901.0,0.05229733]
[1721053627484,1.2002729,62902.0,62901.0,0.05229733]
[1721053627686,1.135839,62902.0,62901.0,0.05229733]
[1721053627885,1.20151669,62902.0,62901.0,0.05229733]
[1721053628324,1.60694759,62902.0,62901.0,0.0127926]
[1721053628500,1.60694759,62902.0,62897.0,0.009163]
[1721053628501,1.7003889,62898.0,62897.0,0.009163]
[1721053628705,2.38100152,62898.0,62897.0,0.009163]
[1721053628880,2.48100152,62898.0,62897.0,0.009163]
[1721053629254,1.73581251,62898.0,62897.0,0.04866773]
[1721053629457,1.65278175,62898.0,62897.0,0.04866773]
[1721053629663,1.87848175,62898.0,62897.0,0.009163]
[1721053629867,2.20345675,62898.0,62897.0,0.009163]
[1721053630015,2.11597985,62898.0,62897.0,0.04866773]
[1721053630224,1.88327985,62898.0,62897.0,0.04866773]
[1721053630387,2.17345675,62898.0,62897.0,0.04866773]
[1721053630586,2.18045675,62898.0,62897.0,0.04866773]
[1721053630804,2.09297985,62898.0,62897.0,0.04866773]
[1721053631026,2.08490657,62898.0,62897.0,0.04866773]
[1721053631629,2.17238347,62898.0,62897.0,0.04866773]
[1721053631884,2.17938347,62898.0,62897.0,0.04866773]
[1721053632122,2.18638347,62898.0,62897.0,0.04866773]
[1721053632312,2.17938347,62898.0,62897.0,0.04866773]
[1721053632516,2.18638347,62898.0,62897.0,0.04866773]
[1721053632946,2.18638347,62898.0,62897.0,0.009163]
[1721053633149,2.18638347,62898.0,62897.0,0.23534415]
[1721053633150,0.014,62898.0,62897.0,0.23534415]
[1721053633378,0.014,62898.0,62897.0,0.71549347]
[1721053633574,0.4707,62921.0,62915.0,0.10618115]
[1721053633779,0.4707,62921.0,62907.0,0.12]
[1721053633780,0.4863143,62922.0,62921.0,0.03950473]
[1721053633984,0.47678,62922.0,62921.0,0.03950473]
[1721053634188,0.56736668,62925.0,62917.0,0.03950473]
[1721053634189,0.5,62918.0,62917.0,0.03950473]
[1721053634396,1.04076728,62918.0,62917.0,0.03950473]
[1721053634623,1.3586476,62918.0,62917.0,0.03850473]
[1721053635471,0.9586476,62918.0,62917.0,0.03850473]
[1721053635642,0.9586476,62918.0,62917.0,0.10418115]
[1721053636102,1.4586476,62918.0,62917.0,0.03750473]
[1721053636322,1.4616476,62918.0,62917.0,0.03750473]
[1721053636523,1.4586476,62918.0,62917.0,0.03750473]
[1721053636734,0.6407736,62918.0,62917.0,0.10418115]
[1721053636935,0.0639626,62918.0,62917.0,0.10418115]
[1721053637140,0.158926,62922.0,62912.0,0.317899]
[1721053637141,0.158926,62922.0,62921.0,0.10418115]
[1721053637287,0.2239072,62922.0,62921.0,0.10418115]
[1721053637489,0.158926,62922.0,62921.0,0.10418115]
[1721053638011,0.635692,62924.0,62923.0,0.03750473]
[1721053638233,0.70030091,62924.0,62923.0,0.03750473]
[1721053638476,0.70030091,62924.0,62923.0,0.03650473]
[1721053638880,0.85922191,62924.0,62923.0,0.03250473]
[1721053640216,0.85922191,62924.0,62921.0,0.0325231]
[1721053640217,0.476779,62922.0,62921.0,0.03250473]
[1721053640604,0.54142217,62922.0,62921.0,0.03250473]
[1721053640819,1.17712817,62922.0,62921.0,0.03250473]
[1721053642206,1.17712817,62922.0,62921.0,0.03350473]
[1721053642613,0.85927517,62922.0,62921.0,0.03350473]
[1721053642770,0.85927517,62922.0,62921.0,0.10018115]
[1721053642971,0.85927517,62922.0,62921.0,0.09918115]
[1721053643197,0.85927517,62922.0,62921.0,0.03250473]
[1721053643426,0.85927517,62922.0,62921.0,0.09918115]
[1721053643427,0.86427517,62922.0,62921.0,0.09918115]
[1721053643600,0.86449471,62922.0,62921.0,0.09918115]
[1721053643825,0.06986271,62922.0,62921.0,0.16118115]
[1721053644023,0.06986271,62922.0,62921.0,0.36028115]
[1721053644231,0.06986271,62922.0,62921.0,0.83706815]
[1721053644485,0.009,62922.0,62921.0,1.15492615]
[1721053644694,0.009,62922.0,62921.0,1.47278415]
[1721053645257,0.009,62922.0,62921.0,1.67278415]
[1721053645460,0.009,62922.0,62921.0,1.47278415]
[1721053645662,0.009,62922.0,62921.0,1.15492615]
[1721053645997,0.009,62922.0,62921.0,0.36028115]
[1721053646222,0.004,62922.0,62921.0,0.36028115]
[1721053646393,0.795438,62924.0,62923.0,0.09918115]
[1721053646551,0.795438,62924.0,62921.0,0.1411]
[1721053646552,0.476772,62923.0,62922.0,0.03250473]
[1721053646778,1.17741369,62923.0,62922.0,0.06665805]
[1721053648454,1.17841369,62923.0,62922.0,0.06765805]
[1721053649236,1.67841369,62923.0,62922.0,0.001]
[1721053649443,1.80141369,62923.0,62922.0,0.001]
[1721053649646,1.80072783,62923.0,62922.0,0.001]
[1721053650026,1.89959505,62923.0,62922.0,0.001]
[1721053650457,1.89959505,62923.0,62921.0,0.03250473]
[1721053650458,1.112485,62922.0,62921.0,0.03250473]
[1721053650631,1.27674483,62922.0,62921.0,0.03250473]
[1721053652207,1.112559,62918.0,62917.0,0.000913]
[1721053652591,1.68286027,62918.0,62917.0,0.000913]
[1721053652761,2.02373427,62918.0,62917.0,0.000913]
[1721053653039,2.02418679,62918.0,62917.0,0.000913]
[1721053654312,2.02418679,62918.0,62917.0,0.10009415]
[1721053654313,1.05868641,62918.0,62917.0,0.10009415]
[1721053654674,0.95939339,62918.0,62917.0,0.10009415]
[1721053655127,1.05863591,62918.0,62917.0,0.10009415]
[1721053655798,0.06570839,62918.0,62917.0,0.10009415]
[1721053656081,0.06570839,62918.0,62917.0,0.16499415]
[1721053656082,0.06470839,62918.0,62917.0,0.16499415]
[1721053656329,0.158937,62918.0,62917.0,0.16499415]
[1721053656573,0.22478303,62918.0,62917.0,0.16499415]
[1721053657581,0.06584603,62918.0,62917.0,0.24469415]
[1721053657755,0.22478303,62918.0,62917.0,0.24469415]
[1721053658122,0.06584603,62918.0,62917.0,0.36469415]
[1721053658288,0.06484603,62918.0,62917.0,0.52363315]
[1721053658495,0.159751,62924.0,62923.0,0.09918115]
[1721053658824,0.22444176,62924.0,62923.0,0.09818115]
[1721053659214,0.54246452,62924.0,62923.0,0.09818115]
[1721053659695,0.54246452,62924.0,62923.0,0.09718115]
[1721053659696,0.95974922,62924.0,62923.0,0.09718115]
[1721053660105,0.95974922,62924.0,62923.0,0.09618115]
[1721053660380,0.64190622,62924.0,62923.0,0.09618115]
[1721053660758,1.14190622,62924.0,62923.0,0.09618115]
[1721053660956,1.04246452,62924.0,62923.0,0.09618115]
[1721053661236,0.64187154,62924.0,62923.0,0.09618115]
[1721053661766,0.64187154,62924.0,62923.0,0.09608115]
[1721053661969,0.64187154,62924.0,62923.0,0.09708115]
[1721053662404,0.64162064,62924.0,62923.0,0.09708115]
[1721053662801,0.64162064,62924.0,62923.0,0.10108115]
[1721053665692,0.64071284,62924.0,62923.0,0.10108115]
[1721053666316,0.16394884,62924.0,62923.0,0.38000515]
[1721053666644,0.06508319,62924.0,62923.0,0.84425315]
[1721053667508,0.06508319,62924.0,62923.0,1.16210115]
[1721053668289,0.06508319,62924.0,62923.0,1.15810115]
[1721053668784,0.06508319,62924.0,62923.0,1.15710115]
[1721053668954,0.06508319,62924.0,62923.0,1.16310115]
[1721053668955,0.06518765,62924.0,62923.0,1.16310115]
[1721053669155,0.06618765,62924.0,62923.0,1.16510115]
[1721053669391,0.06518765,62924.0,62923.0,1.16310115]
[1721053669801,0.06618765,62924.0,62923.0,1.16510115]
[1721053670842,0.06618765,62924.0,62923.0,1.68294915]
[1721053670984,0.06618765,62924.0,62923.0,1.88294915]
[1721053671227,0.06618765,62924.0,62923.0,2.36839715]
[1721053671228,0.00283,62924.0,62923.0,2.36839715]
[1721053671427,0.00283,62924.0,62923.0,2.53051506]
[1721053671833,0.00183,62924.0,62923.0,2.84236306]
[1721053672471,0.00283,62924.0,62923.0,2.85636306]
[1721053672677,0.08105238,62945.0,62943.0,0.83980115]
[1721053672836,0.08105238,62945.0,62943.0,0.71980115]
[1721053672837,0.54966824,62944.0,62943.0,0.71980115]
[1721053673043,0.06335394,62944.0,62943.0,0.83980115]
[1721053673490,0.06335394,62944.0,62943.0,1.15754815]
[1721053673695,0.24073338,62952.0,62951.0,0.37493415]
[1721053673696,0.08188238,62952.0,62951.0,0.37493415]
[1721053673921,0.14526368,62952.0,62951.0,0.83744115]
[1721053674151,0.14526368,62952.0,62951.0,1.15514815]
[1721053674370,0.08188238,62952.0,62951.0,1.15514815]
[1721053674989,0.08188238,62952.0,62951.0,0.83744115]
[1721053675192,0.14519154,62952.0,62951.0,0.24088115]
[1721053675640,0.14495721,62952.0,62951.0,0.24088115]
[1721053676448,0.14495721,62952.0,62951.0,0.25488115]
[1721053676689,0.08188238,62952.0,62951.0,0.51973415]
[1721053676923,0.08188238,62952.0,62951.0,0.85144115]
[1721053677302,0.08188238,62952.0,62951.0,1.16914815]
[1721053677509,0.00083,62952.0,62951.0,1.58585515]
[1721053678333,0.00183,62952.0,62951.0,1.59985515]
[1721053679426,0.00183,62952.0,62951.0,1.58585515]
[1721053679636,0.00183,62952.0,62951.0,1.59985515]
[1721053680127,0.00083,62952.0,62951.0,1.57185515]
[1721053680506,0.00083,62952.0,62951.0,1.58585515]
[1721053680828,0.00183,62952.0,62951.0,1.59985515]
[1721053682507,0.00183,62952.0,62951.0,1.79985515]
[1721053683535,0.00183,62952.0,62951.0,1.59985515]
[1721053685247,0.00183,62952.0,62951.0,0.26788115]
[1721053685367,0.00183,62952.0,62951.0,0.40193415]
[1721053685776,0.00183,62952.0,62951.0,0.71964115]
[1721053686302,0.00183,62952.0,62951.0,1.03734815]
[1721053686505,0.00083,62952.0,62951.0,1.00934815]
[1721053687103,0.00083,62952.0,62951.0,1.02334815]
[1721053687445,0.00083,62952.0,62951.0,1.34105515]
[1721053687654,0.00083,62952.0,62951.0,1.51815515]
[1721053688079,0.00083,62952.0,62951.0,1.33247873]
[1721053688244,0.00083,62952.0,62951.0,1.51815515]
[1721053689087,0.00183,62952.0,62951.0,1.53215515]
[1721053689289,0.00183,62952.0,62951.0,1.51815515]
[1721053689526,0.00183,62952.0,62951.0,1.50415515]
[1721053689712,0.00083,62952.0,62951.0,1.51815515]
[1721053690068,0.00183,62952.0,62951.0,1.51815515]
[1721053690672,0.00183,62952.0,62951.0,1.53215515]
[1721053690881,0.00083,62952.0,62951.0,1.51815515]
[1721053691081,0.00083,62952.0,62951.0,1.50415515]
[1721053692915,0.00083,62952.0,62951.0,1.40415515]
[1721053693146,0.00083,62952.0,62951.0,1.08644815]
[1721053693678,0.00183,62952.0,62951.0,1.10044815]
[1721053693875,0.00183,62952.0,62951.0,1.11444815]
[1721053694074,0.00183,62952.0,62951.0,1.10044815]
[1721053694483,0.00083,62952.0,62951.0,1.10044815]
[1721053694681,0.00083,62952.0,62951.0,1.08644815]
[1721053695107,0.00083,62952.0,62951.0,1.41815515]
[1721053695709,0.00083,62952.0,62951.0,0.38793415]
[1721053695934,0.00083,62952.0,62951.0,0.70564115]
[1721053696144,0.00083,62952.0,62951.0,0.12308115]
[1721053696145,0.160681,62952.0,62951.0,0.12308115]
[1721053696395,0.06535606,62952.0,62951.0,0.12308115]
[1721053696593,0.00183,62952.0,62951.0,0.28193415]
[1721053696811,0.00183,62952.0,62951.0,0.40511086]
[1721053696812,0.06540354,62952.0,62951.0,0.40511086]
[1721053697066,0.06540354,62952.0,62951.0,0.40193415]
[1721053697411,0.06540354,62952.0,62951.0,0.12308115]
[1721053698118,0.06540354,62952.0,62951.0,0.40193415]
[1721053699107,0.06540354,62952.0,62951.0,0.38793415]
[1721053699108,0.06440354,62952.0,62951.0,0.38793415]
[1721053699707,0.06540354,62952.0,62951.0,0.40193415]
[1721053699931,0.06524487,62952.0,62951.0,0.40193415]
[1721053700066,0.06524474,62952.0,62951.0,0.40193415]
[1721053700510,0.06524474,62952.0,62951.0,0.71964115]
[1721053700928,0.06524474,62952.0,62951.0,0.53396473]
[1721053701052,0.06524474,62952.0,62951.0,1.09984815]
[1721053701255,0.06524474,62952.0,62951.0,1.69755515]
[1721053701256,0.00183,62952.0,62951.0,1.69755515]
[1721053701536,0.00183,62952.0,62951.0,1.49755515]
[1721053701855,0.06516813,62952.0,62951.0,1.49755515]
[1721053702812,0.06516813,62952.0,62951.0,1.79755515]
[1721053703031,0.06530052,62952.0,62951.0,1.96515515]
[1721053703359,0.00183,62952.0,62951.0,2.38286215]
[1721053709500,0.00183,62952.0,62951.0,2.21526215]
[1721053710107,0.00183,62952.0,62951.0,2.18286215]
[1721053710324,0.00183,62952.0,62951.0,2.38286215]
[1721053710788,0.00183,62952.0,62951.0,1.69755515]
[1721053712995,0.00183,62952.0,62951.0,1.51187873]
[1721053713194,0.00183,62952.0,62951.0,1.89755515]
[1721053714703,0.00183,62952.0,62951.0,3.08838706]
[1721053714904,0.00183,62952.0,62951.0,3.18838706]
[1721053715803,0.00183,62952.0,62951.0,3.17438706]
[1721053716224,0.00083,62952.0,62951.0,3.17438706]
[1721053716747,0.00083,62952.0,62951.0,3.23592322]
[1721053717345,0.00083,62952.0,62951.0,3.21138706]
[1721053717545,0.00083,62952.0,62951.0,3.25892322]
[1721053717748,0.00083,62952.0,62951.0,3.23092322]
[1721053717948,0.00083,62952.0,62951.0,3.50109406]
[1721053718128,0.00083,62952.0,62951.0,3.98530464]
[1721053718326,0.00083,62952.0,62951.0,3.57242857]
[1721053719042,0.00083,62952.0,62951.0,3.50109406]
[1721053719424,0.00083,62952.0,62951.0,3.92470294]
[1721053719669,0.00083,62952.0,62951.0,3.57242888]
[1721053719870,0.00083,62952.0,62951.0,3.51509406]
[1721053720134,0.00083,62952.0,62951.0,3.50109406]
[1721053720354,0.00083,62952.0,62951.0,3.56264416]
[1721053720554,0.00083,62952.0,62951.0,3.57664416]
[1721053720754,0.00083,62952.0,62951.0,3.52909406]
[1721053721307,0.00083,62952.0,62951.0,3.57663781]
[1721053722084,0.00083,62952.0,62951.0,3.56263781]
[1721053722411,0.00083,62952.0,62951.0,3.51509406]
[1721053723040,0.00083,62952.0,62951.0,3.50109406]
[1721053723243,0.00083,62952.0,62951.0,3.51509406]
[1721053723653,0.00083,62952.0,62951.0,3.50109406]
[1721053723981,0.00083,62952.0,62951.0,3.51509406]
[1721053724565,0.00083,62952.0,62951.0,3.52909406]
[1721053725597,0.00083,62952.0,62951.0,3.51509406]
[1721053726440,0.00083,62952.0,62951.0,3.52909406]
[1721053726900,0.00083,62952.0,62951.0,3.18838706]
[1721053729507,0.00083,62952.0,62951.0,3.21138706]
[1721053730032,0.00083,62952.0,62951.0,3.36138706]
[1721053730260,0.00083,62952.0,62951.0,3.81101229]
[1721053731951,0.00083,62952.0,62951.0,3.67909406]
[1721053732141,0.00083,62952.0,62951.0,3.81101153]
[1721053732453,0.00083,62952.0,62951.0,3.67909406]
[1721053732675,0.00083,62952.0,62951.0,3.81101342]
[1721053735114,0.00083,62952.0,62951.0,3.67909406]
[1721053735459,0.00083,62952.0,62951.0,3.81101482]
[1721053737856,0.00083,62952.0,62951.0,3.67909406]
[1721053738063,0.00083,62952.0,62951.0,3.81101567]
[1721053738286,0.00083,62952.0,62951.0,3.81192867]
[1721053738635,0.00083,62952.0,62951.0,3.81192881]
[1721053739730,0.00083,62952.0,62951.0,3.27625239]
[1721053739889,0.00083,62952.0,62951.0,3.66192881]
[1721053740907,0.00083,62952.0,62951.0,3.53000706]
[1721053741122,0.00083,62952.0,62951.0,3.6619278]
[1721053741546,0.00083,62952.0,62951.0,3.66192905]
[1721053744151,0.00083,62952.0,62951.0,3.53000706]
[1721053744391,0.00083,62952.0,62951.0,3.66193117]
[1721053746155,0.00083,62952.0,62951.0,3.72772067]
[1721053746358,0.00083,62952.0,62951.0,3.89261939]
[1721053746923,0.00083,62952.0,62951.0,3.72772067]
[1721053747309,0.00083,62952.0,62951.0,3.53000706]
[1721053747559,0.00083,62952.0,62951.0,3.66192896]
[1721053747765,0.00083,62952.0,62951.0,3.34423099]
[1721053747966,0.00083,62952.0,62951.0,2.89459306]
[1721053748139,0.00083,62952.0,62951.0,3.0265219]
[1721053748698,0.00083,62952.0,62951.0,2.72909306]
[1721053750111,0.00083,62952.0,62951.0,2.89619306]
[1721053750311,0.00083,62952.0,62951.0,3.02812169]
[1721053750698,0.00083,62952.0,62951.0,3.02811919]
[1721053752858,0.00083,62952.0,62951.0,3.07571293]
[1721053753450,0.00083,62952.0,62951.0,3.39341993]
[1721053754058,0.00083,62952.0,62951.0,3.39342281]
[1721053754486,0.00083,62952.0,62951.0,3.39342341]
[1721053754698,0.00083,62952.0,62951.0,3.34582481]
[1721053756218,0.00083,62952.0,62951.0,3.41722271]
[1721053756414,0.00083,62952.0,62951.0,3.76949699]
[1721053756626,0.0765,62969.0,62951.0,3.76949699]
[1721053756627,0.0611,62976.0,62966.0,2.67185115]
[1721053756823,0.0611,62976.0,62966.0,2.69983806]
[1721053758054,0.08939238,62981.0,62966.0,2.55172015]
[1721053758055,0.14283,62967.0,62966.0,2.55172015]
[1721053758413,0.14283,62967.0,62966.0,2.00838915]
[1721053758630,0.14283,62967.0,62966.0,1.43715815]
[1721053758816,0.20731779,62967.0,62966.0,1.84498915]
[1721053759162,0.36613079,62967.0,62966.0,0.12308115]
[1721053759345,0.7790031,62967.0,62966.0,0.12308115]
[1721053759622,0.86464741,62967.0,62966.0,0.12308115]
[1721053759821,0.44718317,62967.0,62966.0,0.12308115]
[1721053760022,0.38345155,62967.0,62966.0,0.12308115]
[1721053760310,0.22388238,62967.0,62966.0,0.12308115]
[1721053760515,0.40802116,62967.0,62966.0,0.24308115]
[1721053760717,0.2891634,62967.0,62966.0,0.40189615]
[1721053760864,0.27940524,62967.0,62966.0,0.70552715]
[1721053761091,0.27940524,62967.0,62966.0,0.79572715]
[1721053761092,0.20811102,62967.0,62966.0,0.79572715]
[1721053761252,0.25563964,62967.0,62966.0,0.79572715]
[1721053761454,0.25563964,62967.0,62966.0,0.80972715]
[1721053761657,0.25563964,62967.0,62966.0,1.12735815]
[1721053761899,0.20811102,62967.0,62966.0,1.12735815]
[1721053762119,0.20811102,62967.0,62966.0,1.64498915]
[1721053762322,0.20811102,62967.0,62966.0,1.54078915]
[1721053762477,0.20811102,62967.0,62966.0,1.34078915]
[1721053762688,0.20811102,62967.0,62966.0,1.03715815]
[1721053763393,0.14283,62967.0,62966.0,0.12308115]
[1721053763599,0.30325464,62967.0,62966.0,0.12308115]
[1721053763827,0.14283,62967.0,62966.0,0.12308115]
[1721053764038,0.20816917,62967.0,62966.0,0.12308115]
[1721053764623,0.70192352,62967.0,62966.0,0.12308115]
[1721053764791,0.98422912,62967.0,62966.0,0.12308115]
[1721053765002,0.86539006,62967.0,62966.0,0.10908115]
[1721053765348,0.86539006,62967.0,62966.0,0.12308115]
[1721053765549,0.86539006,62967.0,62966.0,0.09155805]